Workbook

Sheet Summary Table

Sheet Property Elements
B2: Exhibit A, Property Capital Expenditures and Annual Expenditures Spreadsheet For: | M2: Notes:
E3: Subject Property | M3: 1) R.U.L. is Remaining Useful Life
E4: W147 S6960 Durham Drive | M4: 2) The estimated future inflation rate for estimating future replacement costs is | T4: 0.025
E5: Muskego, Wisconsin 53150
AS6: Repeat Formula Clear | AU6: =FV($T$4,AU$9,0,$K6,1)*(-1) -> 0
E7: Identification Number 0603002 | AS7: Repeat Formula Green | AU7: =FV($T$4,AU$9,0,$K7,1)*(-1) -> 0
B8: Property Inspected on | D8: September 1, 2006
L9: R.U.L. = | M9: 0 | N9: 1 | O9: 2 | P9: 3 | Q9: 4 | R9: 5 | S9: 6 | T9: 7 | U9: 8 | V9: 9 | W9: 10 | X9: 11 | Y9: 12 | Z9: 13 | AA9: 14 | AB9: 15 | AC9: 16 | AD9: 17 | AE9: 18 | AF9: 19 | AG9: 20 | AH9: 21 | AI9: =SUM(AH9+1) -> 22 | AJ9: =SUM(AI9+1) -> 23 | AK9: 24 | AL9: 25 | AM9: 26 | AN9: 27 | AO9: 28 | AP9: 29 | AQ9: =SUM(AP9+1) -> 30
A10: WEB REF. | B10: Reference Number | C10: Quantities | D10: Unit of Measure | E10: Component Description | F10: Condition | G10: Estimated 1st Year of Replacement | H10: Useful Life, Years | I10: Remaining Life, Years | J10: Unit Cost | K10: Current Replacement Cost | L10: Total Future Cost of Replacement | M10: 2006 | N10: =SUM(M10 +1) -> 2007 | O10: 2008 | P10: 2009 | Q10: 2010 | R10: 2011 | S10: 2012 | T10: 2013 | U10: 2014 | V10: 2015 | W10: 2016 | X10: 2017 | Y10: 2018 | Z10: 2019 | AA10: 2020 | AB10: 2021 | AC10: 2022 | AD10: 2023 | AE10: 2024 | AF10: 2025 | AG10: 2026 | AH10: 2027 | AI10: 2028 | AJ10: 2029 | AK10: 2030 | AL10: 2031 | AM10: 2032 | AN10: 2033 | AO10: 2034 | AP10: 2035 | AQ10: 2036 | BC10: WEB REF. | BD10: # | BE10: Quantities | BF10: Unit of Measure | BG10: Component Description | BH10: Condition | BI10: Estimated 1st Year of Replacement | BJ10: Useful Life, Years | BK10: Remaining Life, Years | BL10: Unit Cost | BM10: Current Replacement Cost | BN10: Total Future Cost of Replacement
BA11: =A10 -> WEB REF.
E12: Building Exterior | BA12: =B10 -> Reference Number
B13: 1 | D13: Each | E13: Chimney Liner and Cap | G13: =SUM(2006+I13) -> 2006 | H13: to 10 | J13: 750 | K13: =SUM(C13*J13) -> 0 | L13: =SUM(M13:AQ13) -> 0 | M13: =IF(M$9=$I13,FV($T$4,M$9,0,$K13,1)*(-1),"---") -> 0 | N13: --- | O13: --- | P13: --- | Q13: --- | R13: --- | S13: --- | T13: --- | U13: --- | V13: --- | W13: --- | X13: --- | Y13: --- | Z13: --- | AA13: --- | AB13: --- | AC13: =IF(AC$9=$I13,FV($T$4,AC$9,0,$K13,1)*(-1),"---") -> --- | AD13: --- | AE13: --- | AF13: --- | AG13: --- | AH13: --- | AI13: --- | AJ13: --- | AK13: --- | AL13: --- | AM13: --- | AN13: --- | AO13: --- | AP13: --- | AQ13: --- | BA13: =C10 -> Quantities
B14: 2 | D14: Each | E14: Entry and Storm Doors | G14: 2006 | H14: to 40 | J14: 550 | K14: 0 | L14: 0 | M14: 0 | N14: --- | O14: --- | P14: --- | Q14: --- | R14: --- | S14: --- | T14: --- | U14: --- | V14: --- | W14: --- | X14: --- | Y14: --- | Z14: --- | AA14: --- | AB14: --- | AC14: --- | AD14: --- | AE14: --- | AF14: --- | AG14: --- | AH14: --- | AI14: --- | AJ14: --- | AK14: --- | AL14: --- | AM14: --- | AN14: --- | AO14: --- | AP14: --- | AQ14: --- | BA14: =D10 -> Unit of Measure
B15: 3 | D15: Each | E15: Garage Door Openers | G15: 2006 | H15: to 15 | J15: 350 | K15: 0 | L15: 0 | M15: 0 | N15: --- | O15: --- | P15: --- | Q15: --- | R15: --- | S15: --- | T15: --- | U15: --- | V15: --- | W15: --- | X15: --- | Y15: --- | Z15: --- | AA15: --- | AB15: --- | AC15: --- | AD15: --- | AE15: --- | AF15: --- | AG15: --- | AH15: --- | AI15: --- | AJ15: --- | AK15: --- | AL15: --- | AM15: --- | AN15: --- | AO15: --- | AP15: --- | AQ15: --- | BA15: =E10 -> Component Description
B16: 4 | D16: Each | E16: Garage Doors | G16: 2006 | H16: to 40 | J16: 785 | K16: 0 | L16: 0 | M16: 0 | N16: --- | O16: --- | P16: --- | Q16: --- | R16: --- | S16: --- | T16: --- | U16: --- | V16: --- | W16: --- | X16: --- | Y16: --- | Z16: --- | AA16: --- | AB16: --- | AC16: --- | AD16: --- | AE16: --- | AF16: --- | AG16: --- | AH16: --- | AI16: --- | AJ16: --- | AK16: --- | AL16: --- | AM16: --- | AN16: --- | AO16: --- | AP16: --- | AQ16: --- | BA16: =F10 -> Condition
B17: 5 | D17: Linear Feet | E17: Gutters and Downspouts | G17: 2006 | H17: to 30 | J17: 6.75 | K17: 0 | L17: 0 | M17: 0 | N17: --- | O17: --- | P17: --- | Q17: --- | R17: --- | S17: --- | T17: --- | U17: --- | V17: --- | W17: --- | X17: --- | Y17: --- | Z17: --- | AA17: --- | AB17: --- | AC17: --- | AD17: --- | AE17: --- | AF17: --- | AG17: --- | AH17: --- | AI17: --- | AJ17: --- | AK17: --- | AL17: --- | AM17: --- | AN17: --- | AO17: --- | AP17: --- | AQ17: --- | BA17: =G10 -> Estimated 1st Year of Replacement
B18: 6 | D18: Squares | E18: Roof, Asphalt Shingle | G18: 2006 | H18: 15 to 20 | J18: 265 | K18: 0 | L18: 0 | M18: 0 | N18: --- | O18: --- | P18: --- | Q18: --- | R18: --- | S18: --- | T18: --- | U18: --- | V18: --- | W18: --- | X18: --- | Y18: --- | Z18: --- | AA18: --- | AB18: --- | AC18: --- | AD18: --- | AE18: --- | AF18: --- | AG18: --- | AH18: --- | AI18: --- | AJ18: --- | AK18: --- | AL18: --- | AM18: --- | AN18: --- | AO18: --- | AP18: --- | AQ18: --- | BA18: =H10 -> Useful Life, Years
B19: 7 | D19: Linear Feet | E19: Sealants | G19: =SUM(2006+I19) -> 2006 | H19: to 15 | J19: 2 | K19: 0 | L19: =SUM(M19:AQ19) -> 0 | M19: 0 | N19: =IF(N$9=$I19,FV($T$4,N$9,0,$K19,1)*(-1),"---") -> --- | O19: --- | P19: --- | Q19: --- | R19: --- | S19: --- | T19: --- | U19: --- | V19: --- | W19: --- | X19: --- | Y19: --- | Z19: --- | AA19: --- | AB19: --- | AC19: --- | AD19: --- | AE19: --- | AF19: --- | AG19: --- | AH19: --- | AI19: --- | AJ19: --- | AK19: --- | AL19: --- | AM19: --- | AN19: --- | AO19: --- | AP19: --- | AQ19: --- | BA19: =I10 -> Remaining Life, Years
B20: 8 | D20: Square Feet | E20: Siding/Soffit/Fascia, Aluminum | G20: 2006 | H20: to 35 | J20: 5 | K20: 0 | L20: 0 | M20: 0 | N20: --- | O20: --- | P20: --- | Q20: --- | R20: --- | S20: --- | T20: --- | U20: --- | V20: --- | W20: --- | X20: --- | Y20: --- | Z20: --- | AA20: --- | AB20: --- | AC20: --- | AD20: --- | AE20: --- | AF20: --- | AG20: --- | AH20: --- | AI20: --- | AJ20: --- | AK20: --- | AL20: --- | AM20: --- | AN20: --- | AO20: --- | AP20: --- | AQ20: --- | BA20: =J10 -> Unit Cost
B21: 9 | D21: Each | E21: Window, Garage East Side | G21: 2006 | H21: 40 to 60 | J21: 458 | K21: 0 | L21: 0 | M21: 0 | N21: --- | O21: --- | P21: --- | Q21: --- | R21: --- | S21: --- | T21: --- | U21: --- | V21: --- | W21: --- | X21: --- | Y21: --- | Z21: --- | AA21: --- | AB21: --- | AC21: --- | AD21: --- | AE21: --- | AF21: --- | AG21: --- | AH21: --- | AI21: --- | AJ21: --- | AK21: --- | AL21: --- | AM21: --- | AN21: --- | AO21: --- | AP21: --- | AQ21: --- | BA21: =K10 -> Current Replacement Cost
B22: 10 | D22: Each | E22: Windows | G22: 2006 | H22: 40 to 60 | J22: 458 | K22: 0 | L22: 0 | M22: 0 | N22: --- | O22: --- | P22: --- | Q22: =IF(Q$9=$I22,FV($T$4,Q$9,0,$K22,1)*(-1),"---") -> --- | R22: --- | S22: --- | T22: --- | U22: --- | V22: --- | W22: --- | X22: --- | Y22: --- | Z22: --- | AA22: --- | AB22: --- | AC22: --- | AD22: --- | AE22: --- | AF22: --- | AG22: --- | AH22: --- | AI22: --- | AJ22: --- | AK22: --- | AL22: --- | AM22: --- | AN22: --- | AO22: --- | AP22: --- | AQ22: --- | BA22: =L10 -> Total Future Cost of Replacement
B23: =SUM(B22+1) -> 11 | G23: 2006 | K23: =SUM(C23*J23) -> 0 | L23: 0 | M23: 0 | N23: --- | O23: --- | P23: --- | Q23: --- | R23: --- | S23: --- | T23: --- | U23: --- | V23: --- | W23: --- | X23: --- | Y23: --- | Z23: --- | AA23: --- | AB23: --- | AC23: --- | AD23: --- | AE23: --- | AF23: --- | AG23: --- | AH23: --- | AI23: --- | AJ23: --- | AK23: --- | AL23: --- | AM23: --- | AN23: --- | AO23: --- | AP23: --- | AQ23: ---
B24: =SUM(B23+1) -> 12 | G24: 2006 | K24: =SUM(C24*J24) -> 0 | L24: 0 | M24: 0 | N24: --- | O24: --- | P24: --- | Q24: --- | R24: --- | S24: --- | T24: --- | U24: --- | V24: --- | W24: --- | X24: --- | Y24: --- | Z24: --- | AA24: --- | AB24: --- | AC24: --- | AD24: --- | AE24: --- | AF24: --- | AG24: --- | AH24: --- | AI24: --- | AJ24: --- | AK24: --- | AL24: --- | AM24: --- | AN24: --- | AO24: --- | AP24: --- | AQ24: ---
B25: =SUM(B24+1) -> 13 | G25: =SUM(2006+I25) -> 2006 | K25: =SUM(C25*J25) -> 0 | L25: =SUM(M25:AQ25) -> 0 | M25: 0 | N25: --- | O25: --- | P25: --- | Q25: --- | R25: --- | S25: --- | T25: --- | U25: --- | V25: --- | W25: --- | X25: --- | Y25: --- | Z25: --- | AA25: --- | AB25: --- | AC25: --- | AD25: --- | AE25: --- | AF25: --- | AG25: --- | AH25: --- | AI25: --- | AJ25: --- | AK25: --- | AL25: --- | AM25: --- | AN25: --- | AO25: --- | AP25: --- | AQ25: ---
B26: =MAX(B13:B25) -> 13 | E26: Building Interior
B27: =SUM(B26+1) -> 14 | C27: 1 | D27: Allowance | E27: Bathroom Update/Remodeling, 1st Floor | G27: =SUM(2006+I27) -> 2006 | H27: to 30 | J27: 4417 | K27: =SUM(C27*J27) -> 4417 | L27: =SUM(M27:AQ27) -> 4417 | M27: =IF(M$9=$I27,FV($T$4,M$9,0,$K27,1)*(-1),"---") -> 4417 | N27: --- | O27: --- | P27: --- | Q27: --- | R27: --- | S27: --- | T27: --- | U27: --- | V27: --- | W27: --- | X27: --- | Y27: --- | Z27: --- | AA27: --- | AB27: --- | AC27: =IF(AC$9=$I27,FV($T$4,AC$9,0,$K27,1)*(-1),"---") -> --- | AD27: --- | AE27: --- | AF27: --- | AG27: --- | AH27: --- | AI27: --- | AJ27: --- | AK27: --- | AL27: --- | AM27: --- | AN27: --- | AO27: --- | AP27: --- | AQ27: ---
B28: 15 | C28: 1 | D28: Allowance | E28: Bathroom Update/Remodeling, 2nd Floor | G28: 2006 | H28: to 30 | J28: 4212 | K28: 4212 | L28: 4212 | M28: 4212 | N28: --- | O28: --- | P28: --- | Q28: --- | R28: --- | S28: --- | T28: --- | U28: --- | V28: --- | W28: --- | X28: --- | Y28: --- | Z28: --- | AA28: --- | AB28: --- | AC28: --- | AD28: --- | AE28: --- | AF28: --- | AG28: --- | AH28: --- | AI28: --- | AJ28: --- | AK28: --- | AL28: --- | AM28: --- | AN28: --- | AO28: --- | AP28: --- | AQ28: ---
B29: 16 | D29: Square Yards | E29: Carpet, 1st Floor | G29: 2006 | H29: to 15 | J29: 41.22 | K29: 0 | L29: 0 | M29: 0 | N29: --- | O29: --- | P29: --- | Q29: --- | R29: --- | S29: --- | T29: --- | U29: --- | V29: --- | W29: --- | X29: --- | Y29: --- | Z29: --- | AA29: --- | AB29: --- | AC29: --- | AD29: --- | AE29: --- | AF29: --- | AG29: --- | AH29: --- | AI29: --- | AJ29: --- | AK29: --- | AL29: --- | AM29: --- | AN29: --- | AO29: --- | AP29: --- | AQ29: ---
B30: 17 | D30: Square Yards | E30: Carpet, 2nd Floor | G30: 2006 | H30: to 15 | J30: 41.22 | K30: 0 | L30: 0 | M30: 0 | N30: --- | O30: --- | P30: --- | Q30: --- | R30: --- | S30: --- | T30: --- | U30: --- | V30: --- | W30: --- | X30: --- | Y30: --- | Z30: --- | AA30: --- | AB30: --- | AC30: --- | AD30: --- | AE30: --- | AF30: --- | AG30: --- | AH30: --- | AI30: --- | AJ30: --- | AK30: --- | AL30: --- | AM30: --- | AN30: --- | AO30: --- | AP30: --- | AQ30: ---
B31: 18 | D31: Square Feet | E31: Hardwood Floor Refinishing | G31: 2006 | H31: to 30 | J31: 2.62 | K31: 0 | L31: 0 | M31: 0 | N31: --- | O31: --- | P31: --- | Q31: --- | R31: --- | S31: --- | T31: --- | U31: --- | V31: --- | W31: --- | X31: --- | Y31: --- | Z31: --- | AA31: --- | AB31: --- | AC31: --- | AD31: --- | AE31: --- | AF31: --- | AG31: --- | AH31: --- | AI31: --- | AJ31: --- | AK31: --- | AL31: --- | AM31: --- | AN31: --- | AO31: --- | AP31: --- | AQ31: ---
B32: 19 | D32: Square Feet | E32: Paint Finish, Ceiling | G32: 2006 | H32: to 20 | J32: 0.64 | K32: 0 | L32: 0 | M32: 0 | N32: --- | O32: --- | P32: --- | Q32: --- | R32: --- | S32: --- | T32: --- | U32: --- | V32: --- | W32: --- | X32: --- | Y32: --- | Z32: --- | AA32: --- | AB32: --- | AC32: --- | AD32: --- | AE32: --- | AF32: --- | AG32: --- | AH32: --- | AI32: --- | AJ32: --- | AK32: --- | AL32: --- | AM32: --- | AN32: --- | AO32: --- | AP32: --- | AQ32: ---
B33: =SUM(B32+1) -> 20 | D33: Square Feet | E33: Paint Finish, Walls | G33: =SUM(2006+I33) -> 2006 | H33: to 10 | J33: 0.54 | K33: 0 | L33: =SUM(M33:AQ33) -> 0 | M33: 0 | N33: --- | O33: --- | P33: --- | Q33: --- | R33: --- | S33: --- | T33: --- | U33: --- | V33: --- | W33: --- | X33: --- | Y33: --- | Z33: --- | AA33: --- | AB33: --- | AC33: --- | AD33: --- | AE33: --- | AF33: --- | AG33: --- | AH33: --- | AI33: --- | AJ33: --- | AK33: --- | AL33: --- | AM33: --- | AN33: --- | AO33: --- | AP33: --- | AQ33: ---
B34: 21 | D34: Square Feet | E34: Recreation Room, Update/Remodel, Basement | G34: 2006 | H34: to 25 | J34: 10 | K34: 0 | L34: 0 | M34: 0 | N34: --- | O34: --- | P34: --- | Q34: --- | R34: --- | S34: --- | T34: --- | U34: --- | V34: --- | W34: --- | X34: --- | Y34: --- | Z34: --- | AA34: --- | AB34: --- | AC34: --- | AD34: --- | AE34: --- | AF34: --- | AG34: --- | AH34: --- | AI34: --- | AJ34: --- | AK34: --- | AL34: --- | AM34: --- | AN34: --- | AO34: --- | AP34: --- | AQ34: ---
B35: 22 | D35: Square Yards | E35: Vinyl Flooring | G35: 2006 | H35: to 20 | J35: 33.39 | K35: 0 | L35: 0 | M35: 0 | N35: --- | O35: --- | P35: --- | Q35: --- | R35: --- | S35: --- | T35: --- | U35: --- | V35: --- | W35: --- | X35: --- | Y35: --- | Z35: --- | AA35: --- | AB35: --- | AC35: --- | AD35: --- | AE35: --- | AF35: --- | AG35: --- | AH35: --- | AI35: --- | AJ35: --- | AK35: --- | AL35: --- | AM35: --- | AN35: --- | AO35: --- | AP35: --- | AQ35: ---
B36: 23 | G36: 2006 | K36: 0 | L36: 0 | M36: 0 | N36: --- | O36: --- | P36: --- | Q36: --- | R36: --- | S36: --- | T36: --- | U36: --- | V36: --- | W36: --- | X36: --- | Y36: --- | Z36: --- | AA36: --- | AB36: --- | AC36: --- | AD36: --- | AE36: --- | AF36: --- | AG36: --- | AH36: --- | AI36: --- | AJ36: --- | AK36: --- | AL36: --- | AM36: --- | AN36: --- | AO36: --- | AP36: --- | AQ36: ---
B37: 24 | G37: 2006 | K37: 0 | L37: 0 | M37: 0 | N37: --- | O37: --- | P37: --- | Q37: --- | R37: --- | S37: --- | T37: --- | U37: --- | V37: --- | W37: --- | X37: --- | Y37: --- | Z37: --- | AA37: --- | AB37: --- | AC37: --- | AD37: --- | AE37: --- | AF37: --- | AG37: --- | AH37: --- | AI37: --- | AJ37: --- | AK37: --- | AL37: --- | AM37: --- | AN37: --- | AO37: --- | AP37: --- | AQ37: ---
B38: 25 | G38: 2006 | K38: 0 | L38: 0 | M38: 0 | N38: --- | O38: --- | P38: --- | Q38: --- | R38: --- | S38: --- | T38: --- | U38: --- | V38: --- | W38: --- | X38: --- | Y38: --- | Z38: --- | AA38: --- | AB38: --- | AC38: --- | AD38: --- | AE38: --- | AF38: --- | AG38: --- | AH38: --- | AI38: --- | AJ38: --- | AK38: --- | AL38: --- | AM38: --- | AN38: --- | AO38: --- | AP38: --- | AQ38: ---
B39: =MAX(B27:B38) -> 25 | E39: Building Systems
B40: =SUM(B39+1) -> 26 | C40: 1 | D40: Each | E40: Central Air Conditioner, Condenser | G40: =SUM(2006+I40) -> 2006 | H40: to 20 | J40: 2000 | K40: =SUM(C40*J40) -> 2000 | L40: =SUM(M40:AQ40) -> 2000 | M40: =IF(M$9=$I40,FV($T$4,M$9,0,$K40,1)*(-1),"---") -> 2000 | N40: --- | O40: --- | P40: --- | Q40: --- | R40: --- | S40: --- | T40: --- | U40: --- | V40: --- | W40: --- | X40: --- | Y40: --- | Z40: --- | AA40: --- | AB40: --- | AC40: --- | AD40: --- | AE40: --- | AF40: --- | AG40: --- | AH40: --- | AI40: --- | AJ40: --- | AK40: --- | AL40: --- | AM40: --- | AN40: --- | AO40: --- | AP40: --- | AQ40: ---
B41: 27 | C41: 1 | D41: Each | E41: Dehumidifier | G41: 2006 | H41: to 10 | J41: 150 | K41: 150 | L41: 150 | M41: =IF(M$9=$I41,FV($T$4,M$9,0,$K41,1)*(-1),"---") -> 150 | N41: --- | O41: --- | P41: --- | Q41: --- | R41: --- | S41: --- | T41: --- | U41: --- | V41: --- | W41: --- | X41: --- | Y41: --- | Z41: =IF(Z$9=$I41,FV($T$4,Z$9,0,$K41,1)*(-1),"---") -> --- | AA41: --- | AB41: --- | AC41: --- | AD41: --- | AE41: --- | AF41: --- | AG41: --- | AH41: --- | AI41: --- | AJ41: --- | AK41: --- | AL41: --- | AM41: --- | AN41: --- | AO41: --- | AP41: =IF(AP$9=$I41,FV($T$4,AP$9,0,$K41,1)*(-1),"---") -> --- | AQ41: ---
B42: 28 | C42: 1 | D42: Each | E42: Electrical Panel Upgrade to 200 Amp | G42: 2006 | H42: to 40 | J42: 1500 | K42: 1500 | L42: 1500 | M42: 1500 | N42: --- | O42: --- | P42: --- | Q42: --- | R42: --- | S42: --- | T42: --- | U42: --- | V42: --- | W42: --- | X42: --- | Y42: =IF(Y$9=$I42,FV($T$4,Y$9,0,$K42,1)*(-1),"---") -> --- | Z42: --- | AA42: --- | AB42: --- | AC42: --- | AD42: --- | AE42: --- | AF42: --- | AG42: --- | AH42: --- | AI42: =IF(AI$9=$I42,FV($T$4,AI$9,0,$K42,1)*(-1),"---") -> --- | AJ42: --- | AK42: --- | AL42: --- | AM42: --- | AN42: --- | AO42: --- | AP42: --- | AQ42: ---
B43: 29 | C43: 1 | D43: Each | E43: Furnace, Gas Forced Warm Air | G43: 2006 | H43: to 20 | J43: 2200 | K43: 2200 | L43: 2200 | M43: 2200 | N43: --- | O43: --- | P43: --- | Q43: --- | R43: --- | S43: --- | T43: --- | U43: --- | V43: --- | W43: --- | X43: --- | Y43: =IF(Y$9=$I43,FV($T$4,Y$9,0,$K43,1)*(-1),"---") -> --- | Z43: --- | AA43: --- | AB43: --- | AC43: --- | AD43: --- | AE43: --- | AF43: --- | AG43: --- | AH43: --- | AI43: --- | AJ43: --- | AK43: --- | AL43: --- | AM43: --- | AN43: --- | AO43: --- | AP43: --- | AQ43: ---
B44: 30 | C44: 1 | D44: Allowance | E44: Plumping Pipe, Partial Replacements | G44: 2006 | H44: to 70 | J44: 1000 | K44: 1000 | L44: 1000 | M44: 1000 | N44: --- | O44: --- | P44: --- | Q44: --- | R44: --- | S44: --- | T44: --- | U44: --- | V44: --- | W44: --- | X44: --- | Y44: =IF(Y$9=$I44,FV($T$4,Y$9,0,$K44,1)*(-1),"---") -> --- | Z44: --- | AA44: --- | AB44: --- | AC44: --- | AD44: --- | AE44: --- | AF44: --- | AG44: --- | AH44: --- | AI44: --- | AJ44: --- | AK44: --- | AL44: --- | AM44: --- | AN44: --- | AO44: --- | AP44: --- | AQ44: ---
B45: 31 | C45: 1 | D45: Allowance | E45: Sewer (Clean Out) | G45: 2006 | H45: to 2 | J45: 125 | K45: 125 | L45: 125 | M45: =IF(M$9=$I45,FV($T$4,M$9,0,$K45,1)*(-1),"---") -> 125 | N45: --- | O45: --- | P45: --- | Q45: --- | R45: =IF(R$9=$I45,FV($T$4,R$9,0,$K45,1)*(-1),"---") -> --- | S45: --- | T45: =IF(T$9=$I45,FV($T$4,T$9,0,$K45,1)*(-1),"---") -> --- | U45: --- | V45: =IF(V$9=$I45,FV($T$4,V$9,0,$K45,1)*(-1),"---") -> --- | W45: --- | X45: =IF(X$9=$I45,FV($T$4,X$9,0,$K45,1)*(-1),"---") -> --- | Y45: --- | Z45: =IF(Z$9=$I45,FV($T$4,Z$9,0,$K45,1)*(-1),"---") -> --- | AA45: --- | AB45: =IF(AB$9=$I45,FV($T$4,AB$9,0,$K45,1)*(-1),"---") -> --- | AC45: --- | AD45: =IF(AD$9=$I45,FV($T$4,AD$9,0,$K45,1)*(-1),"---") -> --- | AE45: --- | AF45: =IF(AF$9=$I45,FV($T$4,AF$9,0,$K45,1)*(-1),"---") -> --- | AG45: --- | AH45: =IF(AH$9=$I45,FV($T$4,AH$9,0,$K45,1)*(-1),"---") -> --- | AI45: --- | AJ45: --- | AK45: --- | AL45: --- | AM45: --- | AN45: --- | AO45: --- | AP45: --- | AQ45: ---
B46: 26 | C46: 1 | D46: Each | E46: Sump Pump | G46: =SUM(2006+I46) -> 2006 | H46: to 20 | J46: 150 | K46: 150 | L46: =SUM(M46:AQ46) -> 150 | M46: 150 | N46: --- | O46: --- | P46: --- | Q46: =IF(Q$9=$I46,FV($T$4,Q$9,0,$K46,1)*(-1),"---") -> --- | R46: --- | S46: =IF(S$9=$I46,FV($T$4,S$9,0,$K46,1)*(-1),"---") -> --- | T46: --- | U46: =IF(U$9=$I46,FV($T$4,U$9,0,$K46,1)*(-1),"---") -> --- | V46: --- | W46: =IF(W$9=$I46,FV($T$4,W$9,0,$K46,1)*(-1),"---") -> --- | X46: --- | Y46: =IF(Y$9=$I46,FV($T$4,Y$9,0,$K46,1)*(-1),"---") -> --- | Z46: =IF(Z$9=$I46,FV($T$4,Z$9,0,$K46,1)*(-1),"---") -> --- | AA46: =IF(AA$9=$I46,FV($T$4,AA$9,0,$K46,1)*(-1),"---") -> --- | AB46: --- | AC46: =IF(AC$9=$I46,FV($T$4,AC$9,0,$K46,1)*(-1),"---") -> --- | AD46: --- | AE46: =IF(AE$9=$I46,FV($T$4,AE$9,0,$K46,1)*(-1),"---") -> --- | AF46: --- | AG46: =IF(AG$9=$I46,FV($T$4,AG$9,0,$K46,1)*(-1),"---") -> --- | AH46: --- | AI46: --- | AJ46: --- | AK46: --- | AL46: --- | AM46: --- | AN46: --- | AO46: --- | AP46: --- | AQ46: ---
B47: 27 | C47: 1 | D47: Each | E47: Water Heater, Gas, 40 Gal. | G47: 2006 | H47: to 15 | J47: 650 | K47: 650 | L47: 650 | M47: 650 | N47: --- | O47: --- | P47: --- | Q47: --- | R47: --- | S47: --- | T47: --- | U47: --- | V47: --- | W47: --- | X47: --- | Y47: --- | Z47: --- | AA47: --- | AB47: --- | AC47: --- | AD47: --- | AE47: =IF(AE$9=$I47,FV($T$4,AE$9,0,$K47,1)*(-1),"---") -> --- | AF47: --- | AG47: --- | AH47: --- | AI47: --- | AJ47: --- | AK47: --- | AL47: --- | AM47: --- | AN47: --- | AO47: --- | AP47: --- | AQ47: ---
B48: 28 | C48: 1 | D48: Each | E48: Water Softener | G48: 2006 | H48: to 10 | J48: 700 | K48: 700 | L48: 700 | M48: 700 | N48: --- | O48: --- | P48: --- | Q48: --- | R48: --- | S48: --- | T48: --- | U48: --- | V48: --- | W48: --- | X48: --- | Y48: --- | Z48: =IF(Z$9=$I48,FV($T$4,Z$9,0,$K48,1)*(-1),"---") -> --- | AA48: --- | AB48: --- | AC48: --- | AD48: --- | AE48: --- | AF48: --- | AG48: --- | AH48: --- | AI48: --- | AJ48: --- | AK48: --- | AL48: --- | AM48: --- | AN48: --- | AO48: --- | AP48: --- | AQ48: ---
B49: =SUM(B48+1) -> 29 | C49: 1 | D49: Each | E49: Well Pump | G49: 2006 | H49: to 20 | J49: 2500 | K49: 2500 | L49: 2500 | M49: 2500 | N49: --- | O49: --- | P49: --- | Q49: --- | R49: --- | S49: --- | T49: --- | U49: --- | V49: --- | W49: --- | X49: --- | Y49: --- | Z49: --- | AA49: --- | AB49: --- | AC49: --- | AD49: --- | AE49: =IF(AE$9=$I49,FV($T$4,AE$9,0,$K49,1)*(-1),"---") -> --- | AF49: --- | AG49: --- | AH49: --- | AI49: --- | AJ49: --- | AK49: --- | AL49: --- | AM49: --- | AN49: --- | AO49: --- | AP49: --- | AQ49: ---
B50: =SUM(B49+1) -> 30 | C50: 1 | D50: Each | E50: Well Tank | G50: 2006 | H50: to 50 | J50: 500 | K50: 500 | L50: 500 | M50: 500 | N50: --- | O50: --- | P50: --- | Q50: --- | R50: --- | S50: --- | T50: --- | U50: --- | V50: --- | W50: --- | X50: --- | Y50: --- | Z50: --- | AA50: --- | AB50: --- | AC50: --- | AD50: --- | AE50: =IF(AE$9=$I50,FV($T$4,AE$9,0,$K50,1)*(-1),"---") -> --- | AF50: --- | AG50: --- | AH50: --- | AI50: --- | AJ50: --- | AK50: --- | AL50: --- | AM50: --- | AN50: --- | AO50: --- | AP50: --- | AQ50: ---
B51: =SUM(B50+1) -> 31 | G51: 2006 | K51: 0 | L51: 0 | M51: 0 | N51: --- | O51: --- | P51: --- | Q51: --- | R51: --- | S51: --- | T51: --- | U51: --- | V51: --- | W51: --- | X51: --- | Y51: --- | Z51: --- | AA51: --- | AB51: --- | AC51: --- | AD51: --- | AE51: =IF(AE$9=$I51,FV($T$4,AE$9,0,$K51,1)*(-1),"---") -> --- | AF51: --- | AG51: --- | AH51: --- | AI51: --- | AJ51: --- | AK51: --- | AL51: --- | AM51: --- | AN51: --- | AO51: --- | AP51: --- | AQ51: ---
B52: =SUM(B51+1) -> 32 | G52: =SUM(2006+I52) -> 2006 | K52: 0 | L52: =SUM(M52:AQ52) -> 0 | M52: 0 | N52: --- | O52: --- | P52: --- | Q52: --- | R52: --- | S52: --- | T52: --- | U52: --- | V52: --- | W52: --- | X52: --- | Y52: --- | Z52: --- | AA52: --- | AB52: --- | AC52: --- | AD52: --- | AE52: =IF(AE$9=$I52,FV($T$4,AE$9,0,$K52,1)*(-1),"---") -> --- | AF52: --- | AG52: --- | AH52: --- | AI52: --- | AJ52: --- | AK52: --- | AL52: --- | AM52: --- | AN52: --- | AO52: --- | AP52: --- | AQ52: ---
B53: =SUM(B52+1) -> 33 | G53: =SUM(2006+I53) -> 2006 | K53: 0 | L53: =SUM(M53:AQ53) -> 0 | M53: 0 | N53: --- | O53: --- | P53: --- | Q53: --- | R53: --- | S53: --- | T53: --- | U53: --- | V53: --- | W53: --- | X53: --- | Y53: --- | Z53: --- | AA53: --- | AB53: --- | AC53: --- | AD53: --- | AE53: =IF(AE$9=$I53,FV($T$4,AE$9,0,$K53,1)*(-1),"---") -> --- | AF53: --- | AG53: --- | AH53: --- | AI53: --- | AJ53: --- | AK53: --- | AL53: --- | AM53: --- | AN53: --- | AO53: --- | AP53: --- | AQ53: ---
B54: =MAX(B40:B53) -> 33 | E54: Site
B55: =SUM(B54+1) -> 34 | D55: Square Feet | E55: Brick Patio | G55: =SUM(2006+I55) -> 2006 | H55: to 15 | J55: 10.5 | K55: =SUM(C55*J55) -> 0 | L55: =SUM(M55:AQ55) -> 0 | M55: =IF(M$9=$I55,FV($T$4,M$9,0,$K55,1)*(-1),"---") -> 0 | N55: --- | O55: --- | P55: --- | Q55: --- | R55: --- | S55: --- | T55: --- | U55: --- | V55: --- | W55: =IF(W$9=$I55,FV($T$4,W$9,0,$K55,1)*(-1),"---") -> --- | X55: --- | Y55: --- | Z55: --- | AA55: --- | AB55: --- | AC55: --- | AD55: --- | AE55: --- | AF55: --- | AG55: --- | AH55: --- | AI55: --- | AJ55: --- | AK55: --- | AL55: --- | AM55: =IF(AM$9=$I55,FV($T$4,AM$9,0,$K55,1)*(-1),"---") -> --- | AN55: --- | AO55: --- | AP55: --- | AQ55: ---
B56: 35 | D56: Square Feet | E56: Concrete Garage Slab | G56: 2006 | H56: to 65 | J56: 7.44 | K56: 0 | L56: 0 | M56: 0 | N56: --- | O56: --- | P56: --- | Q56: --- | R56: --- | S56: --- | T56: --- | U56: --- | V56: --- | W56: --- | X56: --- | Y56: --- | Z56: --- | AA56: --- | AB56: --- | AC56: --- | AD56: --- | AE56: --- | AF56: --- | AG56: --- | AH56: --- | AI56: --- | AJ56: --- | AK56: --- | AL56: --- | AM56: --- | AN56: --- | AO56: --- | AP56: --- | AQ56: ---
B57: 36 | D57: Square Feet | E57: Concrete Stoops | G57: 2006 | H57: to 65 | J57: 15 | K57: 0 | L57: 0 | M57: =IF(M$9=$I57,FV($T$4,M$9,0,$K57,1)*(-1),"---") -> 0 | N57: --- | O57: --- | P57: --- | Q57: --- | R57: --- | S57: --- | T57: --- | U57: --- | V57: --- | W57: --- | X57: --- | Y57: --- | Z57: --- | AA57: --- | AB57: --- | AC57: =IF(AC$9=$I57,FV($T$4,AC$9,0,$K57,1)*(-1),"---") -> --- | AD57: --- | AE57: --- | AF57: --- | AG57: --- | AH57: --- | AI57: --- | AJ57: --- | AK57: --- | AL57: --- | AM57: --- | AN57: --- | AO57: --- | AP57: --- | AQ57: ---
B58: 37 | D58: Square Yards | E58: Driveway, Asphalt Pavement Replacement | G58: 2006 | H58: 15 to 20 | J58: 12.5 | K58: 0 | L58: 0 | M58: =IF(M$9=$I58,FV($T$4,M$9,0,$K58,1)*(-1),"---") -> 0 | N58: --- | O58: --- | P58: --- | Q58: --- | R58: --- | S58: --- | T58: --- | U58: --- | V58: --- | W58: --- | X58: --- | Y58: --- | Z58: --- | AA58: --- | AB58: --- | AC58: --- | AD58: --- | AE58: --- | AF58: --- | AG58: --- | AH58: --- | AI58: --- | AJ58: --- | AK58: --- | AL58: --- | AM58: --- | AN58: --- | AO58: --- | AP58: --- | AQ58: ---
B59: 38 | D59: Square Yards | E59: Driveway, Asphalt Pavement Seal Coat | G59: 2006 | H59: 2 to 4 | J59: 0.95 | K59: 0 | L59: 0 | M59: =IF(M$9=$I59,FV($T$4,K$9,0,$K59,1)*(-1),"---") -> 0 | N59: =IF(N$9=$I59,FV($T$4,N$9,0,$K59,1)*(-1),"---") -> --- | O59: --- | P59: --- | Q59: --- | R59: --- | S59: --- | T59: --- | U59: --- | V59: --- | W59: --- | X59: --- | Y59: --- | Z59: --- | AA59: --- | AB59: --- | AC59: --- | AD59: --- | AE59: --- | AF59: --- | AG59: --- | AH59: --- | AI59: --- | AJ59: --- | AK59: --- | AL59: --- | AM59: --- | AN59: --- | AO59: --- | AP59: --- | AQ59: ---
B60: 39 | D60: Linear Feet | E60: Fence | G60: 2006 | H60: to 15 | J60: 15 | K60: 0 | L60: 0 | M60: =IF(M$9=$I60,FV($T$4,M$9,0,$K60,1)*(-1),"---") -> 0 | N60: --- | O60: =IF(O$9=$I60,FV($T$4,O$9,0,$K60,1)*(-1),"---") -> --- | P60: --- | Q60: --- | R60: --- | S60: --- | T60: --- | U60: --- | V60: --- | W60: --- | X60: --- | Y60: --- | Z60: --- | AA60: --- | AB60: --- | AC60: --- | AD60: --- | AE60: --- | AF60: --- | AG60: --- | AH60: --- | AI60: --- | AJ60: --- | AK60: --- | AL60: --- | AM60: --- | AN60: --- | AO60: --- | AP60: --- | AQ60: ---
B61: =SUM(B60+1) -> 40 | D61: Each | E61: Ramps, Accessible (Anticipated) | G61: =SUM(2006+I61) -> 2006 | H61: to 15 | J61: 300 | K61: 0 | L61: =SUM(M61:AQ61) -> 0 | M61: 0 | N61: --- | O61: =IF(O$9=$I61,FV($T$4,O$9,0,$K61,1)*(-1),"---") -> --- | P61: --- | Q61: --- | R61: --- | S61: --- | T61: --- | U61: --- | V61: --- | W61: --- | X61: --- | Y61: --- | Z61: --- | AA61: --- | AB61: --- | AC61: --- | AD61: --- | AE61: =IF(AE$9=$I61,FV($T$4,AE$9,0,$K61,1)*(-1),"---") -> --- | AF61: =IF(AF$9=$I61,FV($T$4,AF$9,0,$K61,1)*(-1),"---") -> --- | AG61: =IF(AG$9=$I61,FV($T$4,AG$9,0,$K61,1)*(-1),"---") -> --- | AH61: =IF(AH$9=$I61,FV($T$4,AH$9,0,$K61,1)*(-1),"---") -> --- | AI61: --- | AJ61: --- | AK61: --- | AL61: --- | AM61: --- | AN61: --- | AO61: --- | AP61: --- | AQ61: ---
B62: =SUM(B61+1) -> 41 | D62: Allowance | E62: Tree Pruning | G62: =SUM(2006+I62) -> 2006 | H62: to 5 | J62: 500 | K62: 0 | L62: =SUM(M62:AQ62) -> 0 | M62: 0 | N62: --- | O62: =IF(O$9=$I62,FV($T$4,O$9,0,$K62,1)*(-1),"---") -> --- | P62: --- | Q62: --- | R62: --- | S62: --- | T62: --- | U62: --- | V62: =IF(V$9=$I62,FV($T$4,V$9,0,$K62,1)*(-1),"---") -> --- | W62: --- | X62: --- | Y62: --- | Z62: --- | AA62: =IF(AA$9=$I62,FV($T$4,AA$9,0,$K62,1)*(-1),"---") -> --- | AB62: --- | AC62: --- | AD62: --- | AE62: --- | AF62: =IF(AF$9=$I62,FV($T$4,AF$9,0,$K62,1)*(-1),"---") -> --- | AG62: --- | AH62: --- | AI62: --- | AJ62: --- | AK62: --- | AL62: --- | AM62: --- | AN62: --- | AO62: --- | AP62: --- | AQ62: ---
B63: =SUM(B62+1) -> 42 | G63: =SUM(2006+I63) -> 2006 | K63: 0 | L63: =SUM(M63:AQ63) -> 0 | M63: 0 | N63: --- | O63: --- | P63: --- | Q63: --- | R63: --- | S63: --- | T63: --- | U63: =IF(U$9=$I63,FV($T$4,U$9,0,$K63,1)*(-1),"---") -> --- | V63: --- | W63: --- | X63: --- | Y63: --- | Z63: =IF(Z$9=$I63,FV($T$4,Z$9,0,$K63,1)*(-1),"---") -> --- | AA63: --- | AB63: --- | AC63: --- | AD63: --- | AE63: =IF(AE$9=$I63,FV($T$4,AE$9,0,$K63,1)*(-1),"---") -> --- | AF63: --- | AG63: --- | AH63: --- | AI63: --- | AJ63: --- | AK63: --- | AL63: --- | AM63: --- | AN63: --- | AO63: --- | AP63: --- | AQ63: ---
B64: =SUM(B63+1) -> 43 | G64: =SUM(2006+I64) -> 2006 | K64: 0 | L64: =SUM(M64:AQ64) -> 0 | M64: 0 | N64: --- | O64: --- | P64: --- | Q64: --- | R64: --- | S64: --- | T64: --- | U64: =IF(U$9=$I64,FV($T$4,U$9,0,$K64,1)*(-1),"---") -> --- | V64: --- | W64: --- | X64: --- | Y64: --- | Z64: =IF(Z$9=$I64,FV($T$4,Z$9,0,$K64,1)*(-1),"---") -> --- | AA64: --- | AB64: --- | AC64: --- | AD64: --- | AE64: =IF(AE$9=$I64,FV($T$4,AE$9,0,$K64,1)*(-1),"---") -> --- | AF64: --- | AG64: --- | AH64: --- | AI64: --- | AJ64: --- | AK64: --- | AL64: --- | AM64: --- | AN64: --- | AO64: --- | AP64: --- | AQ64: ---
B65: =SUM(B64+1) -> 44 | G65: =SUM(2006+I65) -> 2006 | K65: 0 | L65: =SUM(M65:AQ65) -> 0 | M65: 0 | N65: --- | O65: --- | P65: --- | Q65: --- | R65: --- | S65: --- | T65: --- | U65: =IF(U$9=$I65,FV($T$4,U$9,0,$K65,1)*(-1),"---") -> --- | V65: --- | W65: --- | X65: --- | Y65: --- | Z65: =IF(Z$9=$I65,FV($T$4,Z$9,0,$K65,1)*(-1),"---") -> --- | AA65: --- | AB65: --- | AC65: --- | AD65: --- | AE65: =IF(AE$9=$I65,FV($T$4,AE$9,0,$K65,1)*(-1),"---") -> --- | AF65: --- | AG65: --- | AH65: --- | AI65: --- | AJ65: --- | AK65: --- | AL65: --- | AM65: --- | AN65: --- | AO65: --- | AP65: --- | AQ65: ---
B66: =MAX(B54:B65) -> 44 | E66: Major Appliances
B67: =SUM(B66+1) -> 45 | C67: 1 | D67: Each | E67: Dishwasher | G67: =SUM(2006+I67) -> 2006 | H67: to 15 | J67: 550 | K67: =SUM(C67*J67) -> 550 | L67: =SUM(M67:AQ67) -> 550 | M67: =IF(M$9=$I67,FV($T$4,M$9,0,$K67,1)*(-1),"---") -> 550 | N67: --- | O67: --- | P67: --- | Q67: --- | R67: --- | S67: --- | T67: --- | U67: --- | V67: --- | W67: --- | X67: --- | Y67: --- | Z67: --- | AA67: --- | AB67: --- | AC67: --- | AD67: --- | AE67: --- | AF67: --- | AG67: --- | AH67: --- | AI67: --- | AJ67: --- | AK67: --- | AL67: --- | AM67: --- | AN67: --- | AO67: --- | AP67: --- | AQ67: ---
B68: 46 | C68: 1 | D68: Each | E68: Disposal | G68: 2006 | H68: to 10 | J68: 367 | K68: 367 | L68: 367 | M68: =IF(M$9=$I68,FV($T$4,M$9,0,$K68,1)*(-1),"---") -> 367 | N68: --- | O68: --- | P68: --- | Q68: --- | R68: --- | S68: --- | T68: --- | U68: --- | V68: --- | W68: --- | X68: --- | Y68: --- | Z68: --- | AA68: --- | AB68: --- | AC68: =IF(AC$9=$I68,FV($T$4,AC$9,0,$K68,1)*(-1),"---") -> --- | AD68: --- | AE68: --- | AF68: --- | AG68: --- | AH68: --- | AI68: --- | AJ68: --- | AK68: --- | AL68: --- | AM68: --- | AN68: --- | AO68: --- | AP68: --- | AQ68: ---
B69: 47 | C69: 1 | D69: Each | E69: Dryer, Gas | G69: 2006 | H69: to 12 | J69: 400 | K69: 400 | L69: 400 | M69: 400 | N69: --- | O69: --- | P69: --- | Q69: --- | R69: --- | S69: --- | T69: --- | U69: --- | V69: --- | W69: --- | X69: --- | Y69: --- | Z69: --- | AA69: --- | AB69: =IF(AB$9=$I69,FV($T$4,AB$9,0,$K69,1)*(-1),"---") -> --- | AC69: --- | AD69: --- | AE69: --- | AF69: --- | AG69: =IF(AG$9=$I69,FV($T$4,AG$9,0,$K69,1)*(-1),"---") -> --- | AH69: =IF(AH$9=$I69,FV($T$4,AH$9,0,$K69,1)*(-1),"---") -> --- | AI69: --- | AJ69: --- | AK69: --- | AL69: --- | AM69: --- | AN69: --- | AO69: --- | AP69: --- | AQ69: ---
B70: 48 | C70: 1 | D70: Each | E70: Freezer | G70: 2006 | H70: to 15 | J70: 400 | K70: 400 | L70: 400 | M70: 400 | N70: --- | O70: --- | P70: --- | Q70: --- | R70: --- | S70: --- | T70: --- | U70: --- | V70: --- | W70: --- | X70: --- | Y70: --- | Z70: --- | AA70: --- | AB70: --- | AC70: --- | AD70: --- | AE70: --- | AF70: =IF(AF$9=$I70,FV($T$4,AF$9,0,$K70,1)*(-1),"---") -> --- | AG70: =IF(AG$9=$I70,FV($T$4,AG$9,0,$K70,1)*(-1),"---") -> --- | AH70: =IF(AH$9=$I70,FV($T$4,AH$9,0,$K70,1)*(-1),"---") -> --- | AI70: --- | AJ70: --- | AK70: --- | AL70: --- | AM70: --- | AN70: --- | AO70: --- | AP70: --- | AQ70: ---
B71: 49 | C71: 1 | D71: Each | E71: Microwave | G71: 2006 | H71: to 10 | J71: 150 | K71: 150 | L71: 150 | M71: =IF(M$9=$I71,FV($T$4,M$9,0,$K71,1)*(-1),"---") -> 150 | N71: --- | O71: --- | P71: --- | Q71: --- | R71: --- | S71: --- | T71: --- | U71: --- | V71: --- | W71: --- | X71: --- | Y71: --- | Z71: =IF(Z$9=$I71,FV($T$4,Z$9,0,$K71,1)*(-1),"---") -> --- | AA71: --- | AB71: --- | AC71: --- | AD71: --- | AE71: --- | AF71: =IF(AF$9=$I71,FV($T$4,AF$9,0,$K71,1)*(-1),"---") -> --- | AG71: =IF(AG$9=$I71,FV($T$4,AG$9,0,$K71,1)*(-1),"---") -> --- | AH71: --- | AI71: --- | AJ71: --- | AK71: --- | AL71: --- | AM71: --- | AN71: --- | AO71: --- | AP71: --- | AQ71: ---
B72: 50 | C72: 1 | D72: Each | E72: Refrigerator | G72: 2006 | H72: to 15 | J72: 500 | K72: 500 | L72: 500 | M72: 500 | N72: --- | O72: --- | P72: --- | Q72: --- | R72: --- | S72: --- | T72: --- | U72: --- | V72: --- | W72: --- | X72: --- | Y72: =IF(Y$9=$I72,FV($T$4,Y$9,0,$K72,1)*(-1),"---") -> --- | Z72: --- | AA72: --- | AB72: =IF(AB$9=$I72,FV($T$4,AB$9,0,$K72,1)*(-1),"---") -> --- | AC72: --- | AD72: --- | AE72: --- | AF72: --- | AG72: --- | AH72: --- | AI72: --- | AJ72: --- | AK72: --- | AL72: --- | AM72: --- | AN72: --- | AO72: --- | AP72: --- | AQ72: ---
B73: =SUM(B72+1) -> 51 | C73: 1 | D73: Each | E73: Stove/Oven | G73: =SUM(2006+I73) -> 2006 | H73: to 20 | J73: 550 | K73: 550 | L73: =SUM(M73:AQ73) -> 550 | M73: 550 | N73: --- | O73: --- | P73: --- | Q73: --- | R73: --- | S73: --- | T73: --- | U73: --- | V73: --- | W73: --- | X73: --- | Y73: =IF(Y$9=$I73,FV($T$4,Y$9,0,$K73,1)*(-1),"---") -> --- | Z73: --- | AA73: --- | AB73: --- | AC73: --- | AD73: --- | AE73: =IF(AE$9=$I73,FV($T$4,AE$9,0,$K73,1)*(-1),"---") -> --- | AF73: --- | AG73: --- | AH73: --- | AI73: --- | AJ73: --- | AK73: --- | AL73: --- | AM73: --- | AN73: --- | AO73: --- | AP73: --- | AQ73: ---
B74: =SUM(B73+1) -> 52 | C74: 1 | D74: Each | E74: Washer | G74: =SUM(2006+I74) -> 2006 | H74: to 12 | J74: 450 | K74: 450 | L74: =SUM(M74:AQ74) -> 450 | M74: 450 | N74: --- | O74: --- | P74: --- | Q74: --- | R74: --- | S74: --- | T74: --- | U74: --- | V74: --- | W74: --- | X74: --- | Y74: =IF(Y$9=$I74,FV($T$4,Y$9,0,$K74,1)*(-1),"---") -> --- | Z74: --- | AA74: --- | AB74: --- | AC74: --- | AD74: --- | AE74: =IF(AE$9=$I74,FV($T$4,AE$9,0,$K74,1)*(-1),"---") -> --- | AF74: --- | AG74: --- | AH74: --- | AI74: --- | AJ74: --- | AK74: --- | AL74: --- | AM74: --- | AN74: --- | AO74: --- | AP74: --- | AQ74: ---
B75: =SUM(B74+1) -> 53 | G75: =SUM(2006+I75) -> 2006 | K75: 0 | L75: =SUM(M75:AQ75) -> 0 | M75: =IF(M$9=$I75,FV($T$4,M$9,0,$K75,1)*(-1),"---") -> 0 | N75: --- | O75: --- | P75: --- | Q75: --- | R75: --- | S75: --- | T75: --- | U75: --- | V75: --- | W75: --- | X75: --- | Y75: --- | Z75: --- | AA75: --- | AB75: --- | AC75: --- | AD75: --- | AE75: =IF(AE$9=$I75,FV($T$4,AE$9,0,$K75,1)*(-1),"---") -> --- | AF75: --- | AG75: --- | AH75: --- | AI75: --- | AJ75: --- | AK75: --- | AL75: --- | AM75: --- | AN75: --- | AO75: --- | AP75: --- | AQ75: ---
B76: =SUM(B75+1) -> 54 | G76: =SUM(2006+I76) -> 2006 | K76: 0 | L76: =SUM(M76:AQ76) -> 0 | M76: 0 | N76: --- | O76: --- | P76: --- | Q76: --- | R76: --- | S76: --- | T76: --- | U76: --- | V76: --- | W76: --- | X76: --- | Y76: --- | Z76: --- | AA76: --- | AB76: --- | AC76: --- | AD76: --- | AE76: =IF(AE$9=$I76,FV($T$4,AE$9,0,$K76,1)*(-1),"---") -> --- | AF76: --- | AG76: --- | AH76: --- | AI76: --- | AJ76: --- | AK76: --- | AL76: --- | AM76: --- | AN76: --- | AO76: --- | AP76: --- | AQ76: ---
B77: =SUM(B76+1) -> 55 | G77: =SUM(2006+I77) -> 2006 | K77: 0 | L77: =SUM(M77:AQ77) -> 0 | M77: 0 | N77: --- | O77: --- | P77: --- | Q77: --- | R77: --- | S77: --- | T77: --- | U77: --- | V77: --- | W77: --- | X77: --- | Y77: --- | Z77: --- | AA77: --- | AB77: --- | AC77: --- | AD77: --- | AE77: =IF(AE$9=$I77,FV($T$4,AE$9,0,$K77,1)*(-1),"---") -> --- | AF77: --- | AG77: --- | AH77: --- | AI77: --- | AJ77: --- | AK77: --- | AL77: --- | AM77: --- | AN77: --- | AO77: --- | AP77: --- | AQ77: ---
B78: =MAX(B67:B77) -> 55 | E78: Major Equipment
B79: =SUM(B78+1) -> 56 | C79: 1 | D79: Each | E79: Chipper/Shredder 5 HP | G79: =SUM(2006+I79) -> 2006 | H79: to 20 | J79: 400 | K79: =SUM(C79*J79) -> 400 | L79: =SUM(M79:AQ79) -> 400 | M79: =IF(M$9=$I79,FV($T$4,M$9,0,$K79,1)*(-1),"---") -> 400 | N79: --- | O79: --- | P79: --- | Q79: --- | R79: --- | S79: --- | T79: --- | U79: --- | V79: --- | W79: =IF(W$9=$I79,FV($T$4,W$9,0,$K79,1)*(-1),"---") -> --- | X79: --- | Y79: --- | Z79: --- | AA79: --- | AB79: --- | AC79: --- | AD79: --- | AE79: --- | AF79: --- | AG79: --- | AH79: --- | AI79: --- | AJ79: --- | AK79: --- | AL79: --- | AM79: =IF(AM$9=$I79,FV($T$4,AM$9,0,$K79,1)*(-1),"---") -> --- | AN79: --- | AO79: --- | AP79: --- | AQ79: ---
B80: 57 | C80: 1 | D80: Each | E80: Generator, 5,000 Watt, Gas, 10 HP, Back up | G80: 2006 | H80: to 25 | J80: 500 | K80: 500 | L80: 500 | M80: 500 | N80: --- | O80: --- | P80: --- | Q80: --- | R80: --- | S80: --- | T80: --- | U80: --- | V80: --- | W80: =IF(W$9=$I80,FV($T$4,W$9,0,$K80,1)*(-1),"---") -> --- | X80: --- | Y80: --- | Z80: --- | AA80: --- | AB80: --- | AC80: --- | AD80: --- | AE80: --- | AF80: --- | AG80: --- | AH80: --- | AI80: --- | AJ80: --- | AK80: --- | AL80: --- | AM80: --- | AN80: --- | AO80: --- | AP80: --- | AQ80: ---
B81: 58 | C81: 1 | D81: Each | E81: Lawn Tractor, 16 HP, 42" Cut | G81: 2006 | H81: to 12 | J81: 1200 | K81: 1200 | L81: 1200 | M81: 1200 | N81: --- | O81: --- | P81: --- | Q81: --- | R81: --- | S81: --- | T81: --- | U81: --- | V81: --- | W81: --- | X81: --- | Y81: --- | Z81: --- | AA81: --- | AB81: =IF(AB$9=$I81,FV($T$4,AB$9,0,$K81,1)*(-1),"---") -> --- | AC81: =IF(AC$9=$I81,FV($T$4,AC$9,0,$K81,1)*(-1),"---") -> --- | AD81: --- | AE81: --- | AF81: --- | AG81: --- | AH81: --- | AI81: --- | AJ81: --- | AK81: --- | AL81: --- | AM81: --- | AN81: --- | AO81: --- | AP81: --- | AQ81: ---
B82: 59 | C82: 1 | D82: Each | E82: Pressure Washer, Electric | G82: 2006 | H82: to 10 | J82: 200 | K82: 200 | L82: 200 | M82: =IF(M$9=$I82,FV($T$4,M$9,0,$K82,1)*(-1),"---") -> 200 | N82: --- | O82: --- | P82: --- | Q82: --- | R82: --- | S82: --- | T82: --- | U82: --- | V82: --- | W82: --- | X82: --- | Y82: --- | Z82: --- | AA82: --- | AB82: =IF(AB$9=$I82,FV($T$4,AB$9,0,$K82,1)*(-1),"---") -> --- | AC82: --- | AD82: --- | AE82: --- | AF82: --- | AG82: --- | AH82: --- | AI82: --- | AJ82: --- | AK82: --- | AL82: --- | AM82: --- | AN82: --- | AO82: --- | AP82: --- | AQ82: ---
B83: 60 | C83: 1 | D83: Each | E83: Snow Blower, 5 HP, Two Stage | G83: 2006 | H83: to 12 | J83: 500 | K83: 500 | L83: 500 | M83: 500 | N83: --- | O83: --- | P83: --- | Q83: --- | R83: --- | S83: --- | T83: --- | U83: --- | V83: --- | W83: --- | X83: --- | Y83: --- | Z83: --- | AA83: --- | AB83: --- | AC83: --- | AD83: --- | AE83: --- | AF83: --- | AG83: --- | AH83: --- | AI83: --- | AJ83: --- | AK83: --- | AL83: --- | AM83: --- | AN83: --- | AO83: --- | AP83: --- | AQ83: ---
B84: 61 | C84: 1 | D84: Each | E84: Tiller, 5 HP, 17" | G84: 2006 | H84: to 20 | J84: 500 | K84: 500 | L84: 500 | M84: 500 | N84: --- | O84: --- | P84: --- | Q84: --- | R84: --- | S84: --- | T84: --- | U84: --- | V84: --- | W84: --- | X84: --- | Y84: --- | Z84: --- | AA84: --- | AB84: =IF(AB$9=$I84,FV($T$4,AB$9,0,$K84,1)*(-1),"---") -> --- | AC84: --- | AD84: --- | AE84: --- | AF84: --- | AG84: --- | AH84: --- | AI84: --- | AJ84: --- | AK84: --- | AL84: --- | AM84: --- | AN84: --- | AO84: --- | AP84: --- | AQ84: ---
B85: =SUM(B84+1) -> 62 | G85: =SUM(2006+I85) -> 2006 | K85: 0 | L85: =SUM(M85:AQ85) -> 0 | M85: 0 | N85: --- | O85: --- | P85: --- | Q85: --- | R85: --- | S85: --- | T85: --- | U85: --- | V85: --- | W85: --- | X85: --- | Y85: --- | Z85: --- | AA85: --- | AB85: =IF(AB$9=$I85,FV($T$4,AB$9,0,$K85,1)*(-1),"---") -> --- | AC85: --- | AD85: --- | AE85: --- | AF85: --- | AG85: --- | AH85: --- | AI85: --- | AJ85: --- | AK85: --- | AL85: --- | AM85: --- | AN85: --- | AO85: --- | AP85: --- | AQ85: ---
B86: =SUM(B85+1) -> 63 | G86: =SUM(2006+I86) -> 2006 | K86: 0 | L86: =SUM(M86:AQ86) -> 0 | M86: 0 | N86: --- | O86: --- | P86: --- | Q86: --- | R86: --- | S86: --- | T86: --- | U86: --- | V86: --- | W86: --- | X86: --- | Y86: --- | Z86: --- | AA86: --- | AB86: =IF(AB$9=$I86,FV($T$4,AB$9,0,$K86,1)*(-1),"---") -> --- | AC86: --- | AD86: --- | AE86: --- | AF86: --- | AG86: --- | AH86: --- | AI86: --- | AJ86: --- | AK86: --- | AL86: --- | AM86: --- | AN86: --- | AO86: --- | AP86: --- | AQ86: ---
B87: =SUM(B86+1) -> 64 | G87: =SUM(2006+I87) -> 2006 | K87: 0 | L87: =SUM(M87:AQ87) -> 0 | M87: 0 | N87: --- | O87: --- | P87: --- | Q87: --- | R87: --- | S87: --- | T87: --- | U87: --- | V87: --- | W87: --- | X87: --- | Y87: --- | Z87: --- | AA87: --- | AB87: --- | AC87: =IF(AC$9=$I87,FV($T$4,AC$9,0,$K87,1)*(-1),"---") -> --- | AD87: --- | AE87: --- | AF87: --- | AG87: --- | AH87: --- | AI87: --- | AJ87: --- | AK87: --- | AL87: --- | AM87: --- | AN87: --- | AO87: --- | AP87: --- | AQ87: ---
I88: Anticipated Capital Expenditures by Year | M88: =SUM(M12:M87) -> 26771 | N88: 0 | O88: 0 | P88: 0 | Q88: 0 | R88: 0 | S88: 0 | T88: 0 | U88: 0 | V88: 0 | W88: 0 | X88: 0 | Y88: 0 | Z88: 0 | AA88: 0 | AB88: 0 | AC88: 0 | AD88: 0 | AE88: 0 | AF88: 0 | AG88: 0 | AH88: 0 | AI88: =SUM(AI12:AI87) -> 0 | AJ88: 0 | AK88: 0 | AL88: 0 | AM88: 0 | AN88: 0 | AO88: 0 | AP88: 0 | AQ88: 0
I89: Total Capital Expenditures For 31 Years | L89: =SUM(L13:L87) -> 26771
F91: Annual Expenses/Routine Maintenance | K91: Annual Expense
H92: Yard, mowing, trim, et. | K92: 975 | L92: =SUM(M92:AQ92) -> 44850.26397 | M92: =$K92 -> 975 | N92: =$K92* ($T$4+1) -> 999.375 | O92: =N92* ($T$4+1) -> 1024.359375 | P92: =O92* ($T$4+1) -> 1049.968359 | Q92: =P92* ($T$4+1) -> 1076.217568 | R92: 1103.123008 | S92: 1130.701083 | T92: 1158.96861 | U92: 1187.942825 | V92: 1217.641396 | W92: 1248.082431 | X92: 1279.284491 | Y92: 1311.266604 | Z92: 1344.048269 | AA92: 1377.649475 | AB92: 1412.090712 | AC92: 1447.39298 | AD92: 1483.577805 | AE92: 1520.66725 | AF92: 1558.683931 | AG92: 1597.651029 | AH92: 1637.592305 | AI92: =AH92* ($T$4+1) -> 1678.532113 | AJ92: 1720.495415 | AK92: 1763.507801 | AL92: 1807.595496 | AM92: 1852.785383 | AN92: 1899.105018 | AO92: 1946.582643 | AP92: 1995.247209 | AQ92: 2045.12839
H93: Furnace, annual check & clean | K93: 85 | L93: 3910.023013 | M93: =$K93 -> 85 | N93: =$K93* ($T$4+1) -> 87.125 | O93: =N93* ($T$4+1) -> 89.303125 | P93: 91.53570312 | Q93: 93.8240957 | R93: 96.1696981 | S93: 98.57394055 | T93: 101.0382891 | U93: 103.5642463 | V93: 106.1533524 | W93: 108.8071863 | X93: 111.5273659 | Y93: 114.3155501 | Z93: 117.1734388 | AA93: 120.1027748 | AB93: 123.1053442 | AC93: 126.1829778 | AD93: 129.3375522 | AE93: 132.570991 | AF93: 135.8852658 | AG93: 139.2823974 | AH93: 142.7644574 | AI93: =AH93* ($T$4+1) -> 146.3335688 | AJ93: 149.991908 | AK93: 153.7417057 | AL93: 157.5852484 | AM93: 161.5248796 | AN93: 165.5630016 | AO93: 169.7020766 | AP93: 173.9446285 | AQ93: 178.2932442
H94: Plumbing, minor repairs | K94: 20 | L94: 920.0054148 | M94: 20 | N94: 20.5 | O94: =N94* ($T$4+1) -> 21.0125 | P94: 21.5378125 | Q94: 22.07625781 | R94: 22.62816426 | S94: 23.19386836 | T94: 23.77371507 | U94: 24.36805795 | V94: 24.9772594 | W94: 25.60169088 | X94: 26.24173316 | Y94: 26.89777648 | Z94: 27.5702209 | AA94: 28.25947642 | AB94: 28.96596333 | AC94: 29.69011241 | AD94: 30.43236522 | AE94: 31.19317435 | AF94: 31.97300371 | AG94: 32.77232881 | AH94: 33.59163703 | AI94: =AH94* ($T$4+1) -> 34.43142795 | AJ94: 35.29221365 | AK94: 36.17451899 | AL94: 37.07888197 | AM94: 38.00585402 | AN94: 38.95600037 | AO94: 39.92990038 | AP94: 40.92814788 | AQ94: 41.95135158
H95: Electrical, minor repairs | K95: 15 | L95: 690.0040611 | M95: 15 | N95: 15.375 | O95: =N95* ($T$4+1) -> 15.759375 | P95: 16.15335937 | Q95: 16.55719336 | R95: 16.97112319 | S95: 17.39540127 | T95: 17.83028631 | U95: 18.27604346 | V95: 18.73294455 | W95: 19.20126816 | X95: 19.68129987 | Y95: 20.17333236 | Z95: 20.67766567 | AA95: 21.19460731 | AB95: 21.7244725 | AC95: 22.26758431 | AD95: 22.82427392 | AE95: 23.39488077 | AF95: 23.97975278 | AG95: 24.5792466 | AH95: 25.19372777 | AI95: =AH95* ($T$4+1) -> 25.82357096 | AJ95: 26.46916024 | AK95: 27.13088924 | AL95: 27.80916147 | AM95: 28.50439051 | AN95: 29.21700027 | AO95: 29.94742528 | AP95: 30.69611091 | AQ95: 31.46351369
H96: Window Cleaning -Seasonal | K96: 75 | L96: 3450.020306 | M96: 75 | N96: 76.875 | O96: =N96* ($T$4+1) -> 78.796875 | P96: 80.76679687 | Q96: 82.7859668 | R96: 84.85561597 | S96: 86.97700637 | T96: 89.15143153 | U96: 91.38021731 | V96: 93.66472275 | W96: 96.00634081 | X96: 98.40649934 | Y96: 100.8666618 | Z96: 103.3883284 | AA96: 105.9730366 | AB96: 108.6223625 | AC96: 111.3379215 | AD96: 114.1213696 | AE96: 116.9744038 | AF96: 119.8987639 | AG96: 122.896233 | AH96: 125.9686388 | AI96: =AH96* ($T$4+1) -> 129.1178548 | AJ96: 132.3458012 | AK96: 135.6544462 | AL96: 139.0458074 | AM96: 142.5219526 | AN96: 146.0850014 | AO96: 149.7371264 | AP96: 153.4805546 | AQ96: 157.3175684
H97: Utilities | K97: 0 | L97: 0 | M97: 0 | N97: 0 | O97: =N97* ($T$4+1) -> 0 | P97: 0 | Q97: 0 | R97: 0 | S97: 0 | T97: 0 | U97: 0 | V97: 0 | W97: 0 | X97: 0 | Y97: 0 | Z97: 0 | AA97: 0 | AB97: 0 | AC97: 0 | AD97: 0 | AE97: 0 | AF97: 0 | AG97: 0 | AH97: 0 | AI97: =AH97* ($T$4+1) -> 0 | AJ97: 0 | AK97: 0 | AL97: 0 | AM97: 0 | AN97: 0 | AO97: 0 | AP97: 0 | AQ97: 0
H98: Interior Paint/Misc Repair | K98: 150 | L98: =SUM(M98:AQ98) -> 6900.040611 | M98: 150 | N98: 153.75 | O98: =N98* ($T$4+1) -> 157.59375 | P98: 161.5335937 | Q98: 165.5719336 | R98: 169.7112319 | S98: 173.9540127 | T98: 178.3028631 | U98: 182.7604346 | V98: 187.3294455 | W98: 192.0126816 | X98: 196.8129987 | Y98: 201.7333236 | Z98: 206.7766567 | AA98: 211.9460731 | AB98: 217.244725 | AC98: 222.6758431 | AD98: 228.2427392 | AE98: 233.9488077 | AF98: 239.7975278 | AG98: 245.792466 | AH98: 251.9372777 | AI98: =AH98* ($T$4+1) -> 258.2357096 | AJ98: 264.6916024 | AK98: 271.3088924 | AL98: 278.0916147 | AM98: 285.0439051 | AN98: 292.1700027 | AO98: 299.4742528 | AP98: 306.9611091 | AQ98: 314.6351369
H99: City Assessments | K99: 0 | L99: 0 | M99: 0 | N99: 0 | O99: =N99* ($T$4+1) -> 0 | P99: 0 | Q99: 0 | R99: 0 | S99: 0 | T99: 0 | U99: 0 | V99: 0 | W99: 0 | X99: 0 | Y99: 0 | Z99: 0 | AA99: 0 | AB99: 0 | AC99: 0 | AD99: 0 | AE99: 0 | AF99: 0 | AG99: 0 | AH99: 0 | AI99: =AH99* ($T$4+1) -> 0 | AJ99: 0 | AK99: 0 | AL99: 0 | AM99: 0 | AN99: 0 | AO99: 0 | AP99: 0 | AQ99: 0
H100: Sewer & Water | K100: 0 | L100: 0 | M100: 0 | N100: 0 | O100: =N100* ($T$4+1) -> 0 | P100: 0 | Q100: 0 | R100: 0 | S100: 0 | T100: 0 | U100: 0 | V100: 0 | W100: 0 | X100: 0 | Y100: 0 | Z100: 0 | AA100: 0 | AB100: 0 | AC100: 0 | AD100: 0 | AE100: 0 | AF100: 0 | AG100: 0 | AH100: 0 | AI100: =AH100* ($T$4+1) -> 0 | AJ100: 0 | AK100: 0 | AL100: 0 | AM100: 0 | AN100: 0 | AO100: 0 | AP100: 0 | AQ100: 0
H101: Property Taxes | K101: 0 | L101: 0 | M101: 0 | N101: 0 | O101: =N101* ($T$4+1) -> 0 | P101: 0 | Q101: 0 | R101: 0 | S101: 0 | T101: 0 | U101: 0 | V101: 0 | W101: 0 | X101: 0 | Y101: 0 | Z101: 0 | AA101: 0 | AB101: 0 | AC101: 0 | AD101: 0 | AE101: 0 | AF101: 0 | AG101: 0 | AH101: 0 | AI101: =AH101* ($T$4+1) -> 0 | AJ101: 0 | AK101: 0 | AL101: 0 | AM101: 0 | AN101: 0 | AO101: 0 | AP101: 0 | AQ101: 0
H102: Loan Principal & Interest | K102: 0 | L102: 0 | M102: 0 | N102: 0 | O102: =N102* ($T$4+1) -> 0 | P102: 0 | Q102: 0 | R102: 0 | S102: 0 | T102: 0 | U102: 0 | V102: 0 | W102: 0 | X102: 0 | Y102: 0 | Z102: 0 | AA102: 0 | AB102: 0 | AC102: 0 | AD102: 0 | AE102: 0 | AF102: 0 | AG102: 0 | AH102: 0 | AI102: =AH102* ($T$4+1) -> 0 | AJ102: 0 | AK102: 0 | AL102: 0 | AM102: 0 | AN102: 0 | AO102: 0 | AP102: 0 | AQ102: 0
H103: Rental Property Insurance/Liability | K103: 0 | L103: 0 | M103: 0 | N103: 0 | O103: =N103* ($T$4+1) -> 0 | P103: 0 | Q103: 0 | R103: 0 | S103: 0 | T103: 0 | U103: 0 | V103: 0 | W103: 0 | X103: 0 | Y103: 0 | Z103: 0 | AA103: 0 | AB103: 0 | AC103: 0 | AD103: 0 | AE103: 0 | AF103: 0 | AG103: 0 | AH103: 0 | AI103: =AH103* ($T$4+1) -> 0 | AJ103: 0 | AK103: 0 | AL103: 0 | AM103: 0 | AN103: 0 | AO103: 0 | AP103: 0 | AQ103: 0
H104: Personal Property Insurance | K104: 0 | L104: =SUM(M104:AQ104) -> 0 | M104: 0 | N104: 0 | O104: =N104* ($T$4+1) -> 0 | P104: 0 | Q104: 0 | R104: 0 | S104: 0 | T104: 0 | U104: 0 | V104: 0 | W104: 0 | X104: 0 | Y104: 0 | Z104: 0 | AA104: 0 | AB104: 0 | AC104: 0 | AD104: 0 | AE104: 0 | AF104: 0 | AG104: 0 | AH104: 0 | AI104: =AH104* ($T$4+1) -> 0 | AJ104: 0 | AK104: 0 | AL104: 0 | AM104: 0 | AN104: 0 | AO104: 0 | AP104: 0 | AQ104: 0
H105: 24/7 Services Line | K105: 0 | L105: 0 | M105: 0 | N105: 0 | O105: =N105* ($T$4+1) -> 0 | P105: 0 | Q105: 0 | R105: 0 | S105: 0 | T105: 0 | U105: 0 | V105: 0 | W105: 0 | X105: 0 | Y105: 0 | Z105: 0 | AA105: 0 | AB105: 0 | AC105: 0 | AD105: 0 | AE105: 0 | AF105: 0 | AG105: 0 | AH105: 0 | AI105: =AH105* ($T$4+1) -> 0 | AJ105: 0 | AK105: 0 | AL105: 0 | AM105: 0 | AN105: 0 | AO105: 0 | AP105: 0 | AQ105: 0
H106: Bank fees-total | K106: 0 | L106: 0 | M106: 0 | N106: 0 | O106: =N106* ($T$4+1) -> 0 | P106: 0 | Q106: 0 | R106: 0 | S106: 0 | T106: 0 | U106: 0 | V106: 0 | W106: 0 | X106: 0 | Y106: 0 | Z106: 0 | AA106: 0 | AB106: 0 | AC106: 0 | AD106: 0 | AE106: 0 | AF106: 0 | AG106: 0 | AH106: 0 | AI106: =AH106* ($T$4+1) -> 0 | AJ106: 0 | AK106: 0 | AL106: 0 | AM106: 0 | AN106: 0 | AO106: 0 | AP106: 0 | AQ106: 0
H107: Exterior Trim Maintenance | K107: 350 | L107: 16100.09476 | M107: 350 | N107: 358.75 | O107: =N107* ($T$4+1) -> 367.71875 | P107: 376.9117187 | Q107: 386.3345117 | R107: 395.9928745 | S107: 405.8926964 | T107: 416.0400138 | U107: 426.4410141 | V107: 437.1020395 | W107: 448.0295905 | X107: 459.2303302 | Y107: 470.7110885 | Z107: 482.4788657 | AA107: 494.5408373 | AB107: 506.9043583 | AC107: 519.5769672 | AD107: 532.5663914 | AE107: 545.8805512 | AF107: 559.527565 | AG107: 573.5157541 | AH107: 587.853648 | AI107: =AH107* ($T$4+1) -> 602.5499892 | AJ107: 617.6137389 | AK107: 633.0540824 | AL107: 648.8804344 | AM107: 665.1024453 | AN107: 681.7300064 | AO107: 698.7732566 | AP107: 716.242588 | AQ107: 734.1486527
H108: Trustee Fees | K108: 1368 | L108: 62928.37038 | M108: 1368 | N108: 1402.2 | O108: 1437.255 | P108: 1473.186375 | Q108: 1510.016034 | R108: 1547.766435 | S108: 1586.460596 | T108: 1626.122111 | U108: 1666.775164 | V108: 1708.444543 | W108: 1751.155656 | X108: 1794.934548 | Y108: 1839.807912 | Z108: 1885.803109 | AA108: 1932.948187 | AB108: 1981.271892 | AC108: 2030.803689 | AD108: 2081.573781 | AE108: 2133.613126 | AF108: 2186.953454 | AG108: 2241.62729 | AH108: 2297.667973 | AI108: 2355.109672 | AJ108: 2413.987414 | AK108: 2474.337099 | AL108: 2536.195527 | AM108: 2599.600415 | AN108: 2664.590425 | AO108: 2731.205186 | AP108: 2799.485315 | AQ108: 2869.472448
H109: Wish Fees-total | K109: 1800 | L109: 82800.48734 | M109: =$K109 -> 1800 | N109: 1845 | O109: =N109* ($T$4+1) -> 1891.125 | P109: 1938.403125 | Q109: 1986.863203 | R109: 2036.534783 | S109: 2087.448153 | T109: 2139.634357 | U109: 2193.125216 | V109: 2247.953346 | W109: 2304.15218 | X109: 2361.755984 | Y109: 2420.799884 | Z109: 2481.319881 | AA109: 2543.352878 | AB109: 2606.9367 | AC109: 2672.110117 | AD109: 2738.91287 | AE109: 2807.385692 | AF109: 2877.570334 | AG109: 2949.509593 | AH109: 3023.247332 | AI109: =AH109* ($T$4+1) -> 3098.828516 | AJ109: 3176.299229 | AK109: 3255.706709 | AL109: 3337.099377 | AM109: 3420.526861 | AN109: 3506.040033 | AO109: 3593.691034 | AP109: 3683.53331 | AQ109: 3775.621642
I110: Anticipated Annual Expenses By Year | M110: =SUM(M91:M109) -> 4838 | N110: =SUM(N91:N109) -> 4958.95 | O110: 5082.92375 | P110: 5209.996844 | Q110: 5340.246765 | R110: 5473.752934 | S110: 5610.596757 | T110: 5750.861676 | U110: 5894.633218 | V110: 6041.999049 | W110: 6193.049025 | X110: 6347.87525 | Y110: 6506.572132 | Z110: 6669.236435 | AA110: 6835.967346 | AB110: 7006.86653 | AC110: 7182.038193 | AD110: 7361.589148 | AE110: 7545.628876 | AF110: 7734.269598 | AG110: 7927.626338 | AH110: 8125.816997 | AI110: =SUM(AI91:AI109) -> 8328.962421 | AJ110: 8537.186482 | AK110: 8750.616144 | AL110: 8969.381548 | AM110: 9193.616086 | AN110: 9423.456489 | AO110: 9659.042901 | AP110: 9900.518973 | AQ110: 10148.03195
I111: Anticipated Monthly Expenses by Year | M111: =M110*0.08333333333 -> 403.1666667 | N111: 413.2458333 | O111: 423.5769791 | P111: 434.1664036 | Q111: 445.0205637 | R111: 456.1460778 | S111: 467.5497298 | T111: 479.238473 | U111: 491.2194348 | V111: 503.4999207 | W111: 516.0874187 | X111: 528.9896042 | Y111: 542.2143443 | Z111: 555.7697029 | AA111: 569.6639455 | AB111: 583.9055441 | AC111: 598.5031827 | AD111: 613.4657623 | AE111: 628.8024063 | AF111: 644.5224665 | AG111: 660.6355282 | AH111: 677.1514164 | AI111: =AI110*0.08333333333 -> 694.0802018 | AJ111: 711.4322068 | AK111: 729.218012 | AL111: 747.4484623 | AM111: 766.1346738 | AN111: 785.2880407 | AO111: 804.9202417 | AP111: 825.0432477 | AQ111: 845.6693289
I112: Total Annual Expenditures For 31 Years | L112: =SUM(L92:L109) -> 222549.3099
E113: Summary of Capital Expenditures and Annual Expenses
G114: Total Capital and Annual Expenditures By Year | M114: =M88+M110 -> 31609 | N114: =N88+N110 -> 4958.95 | O114: 5082.92375 | P114: 5209.996844 | Q114: 5340.246765 | R114: 5473.752934 | S114: 5610.596757 | T114: 5750.861676 | U114: 5894.633218 | V114: 6041.999049 | W114: 6193.049025 | X114: 6347.87525 | Y114: 6506.572132 | Z114: 6669.236435 | AA114: 6835.967346 | AB114: 7006.86653 | AC114: 7182.038193 | AD114: 7361.589148 | AE114: 7545.628876 | AF114: 7734.269598 | AG114: 7927.626338 | AH114: 8125.816997 | AI114: =AI88+AI110 -> 8328.962421 | AJ114: =AJ88+AJ110 -> 8537.186482 | AK114: 8750.616144 | AL114: 8969.381548 | AM114: 9193.616086 | AN114: 9423.456489 | AO114: 9659.042901 | AP114: 9900.518973 | AQ114: 10148.03195
G115: Total Average Capital and Annual Expenditures By Year/Month | M115: =M114*0.08333333333 -> 2634.083333 | N115: 413.2458333 | O115: 423.5769791 | P115: 434.1664036 | Q115: 445.0205637 | R115: 456.1460778 | S115: 467.5497298 | T115: 479.238473 | U115: 491.2194348 | V115: 503.4999207 | W115: 516.0874187 | X115: 528.9896042 | Y115: 542.2143443 | Z115: 555.7697029 | AA115: 569.6639455 | AB115: 583.9055441 | AC115: 598.5031827 | AD115: 613.4657623 | AE115: 628.8024063 | AF115: 644.5224665 | AG115: 660.6355282 | AH115: 677.1514164 | AI115: =AI114*0.08333333333 -> 694.0802018 | AJ115: 711.4322068 | AK115: 729.218012 | AL115: 747.4484623 | AM115: 766.1346738 | AN115: 785.2880407 | AO115: 804.9202417 | AP115: 825.0432477 | AQ115: 845.6693289
G116: Total Capital and Annual Expenditures For 31 Years | L116: =$L89+$L112 -> 249320.3099
G123: Table Expenditure Information
I124: Period, Years | J124: 2006 - 2013 | K124: 2014 - 2021 | L124: 2022 - 2029 | M124: 2030 - 2036
I125: Amount | J125: =SUM($M114:$T114) -> 69036.32873 | K125: =SUM($U114:$AB114) -> 51496.19898 | L125: =SUM($AC114:$AJ114) -> 62743.11805 | M125: =SUM($AK114:$AQ114) -> 66044.66409
I126: Percentage | J126: =SUM($J125/$L116) -> 0.2768981346 | K126: =SUM($K125/$L116) -> 0.206546346 | L126: =SUM($L125/$L116) -> 0.2516566664 | M126: =SUM($M125/$L116) -> 0.2648988529
E128: Pie Chart of Capital Expenditures
E129: Building Exterior | F129: =SUM(L13:L25) -> 0
E130: Building Interior | F130: =SUM(L27:L38) -> 8629
E131: Building Systems | F131: =SUM(L40:L53) -> 11475
E132: Site | F132: =SUM(L55:L65) -> 0
E133: Major Appliances | F133: =SUM(L67:L77) -> 3367
E134: Major Equipment | F134: =SUM(L79:L87) -> 3300
G135: =SUM(F129:F134) -> 26771
E138: Pie Chart - Capital Expeditures Vs. Annual Expenses/Maintenance
E139: Capital Expeditures | F139: =SUM(L89) -> 26771
E140: Annual Expenses & Maintenance | F140: =SUM(L112) -> 222549.3099

Sheet Cash Flow Analysis
E2: Cash Flow Analysis for
E3: ='Property Elements'!E3 -> Subject Property
E4: ='Property Elements'!E4 -> W147 S6960 Durham Drive
E5: ='Property Elements'!E5 -> Muskego, Wisconsin 53150
E7: Inflation: | F7: ='Property Elements'!$T$4 -> 0.025
A8: Anticipated Annual Percent Yield on Trust Funds: | F8: 0.035
B10: Year | C10: January 1, Trust Balance | D10: Recommended Annual Funding (+) | E10: Estimated Interest Earned (+) | F10: Anticipated Expenditures (-) | G10: Trust Account Balance at Year End | K10: Monthly | N10: Year | O10: Annually | P10: Monthly | Q10: Year | R10: Annually | S10: Monthly | T10: Year | U10: Annually | V10: Monthly
B11: 2006 | C11: 50000 | D11: 14000 | E11: =((C11+($D11/2))*($F$8+1))-(C11+(D11/2)) -> 1995 | F11: ='Property Elements'!$M114*-1 -> -31609 | G11: =C11+D11+E11+ F11 -> 34386 | K11: =$D11/12 -> 1166.666667 | N11: =B11 -> 2006 | O11: =D11 -> 14000 | P11: =$D11/12 -> 1166.666667 | Q11: =N21+1 -> 2017 | R11: =D22 -> 18369.21321 | S11: =$R11/12 -> 1530.767767 | T11: =Q21+1 -> 2028 | U11: =D33 -> 24101.99957 | V11: =$U11/12 -> 2008.499964
B12: =SUM(B11+1) -> 2007 | C12: =G11 -> 34386 | D12: =$D11*($F$7+1) -> 14350 | E12: =((C12+($D12/2))*($F$8+1))-(C12+(D12/2)) -> 1454.635 | F12: ='Property Elements'!$N114*-1 -> -4958.95 | G12: =C12+D12+E12+ F12 -> 45231.685 | K12: =$D12/12 -> 1195.833333 | N12: =N11+1 -> 2007 | O12: =D12 -> 14350 | P12: =$D12/12 -> 1195.833333 | Q12: =Q11+1 -> 2018 | R12: =D23 -> 18828.44354 | S12: =$R12/12 -> 1569.036962 | T12: =T11+1 -> 2029 | U12: =D34 -> 24704.54956 | V12: =$U12/12 -> 2058.712463
B13: =SUM(B12+1) -> 2008 | C13: =G12 -> 45231.685 | D13: =$D12*($F$7+1) -> 14708.75 | E13: 1840.5121 | F13: ='Property Elements'!$O$114*-1 -> -5082.92375 | G13: 56698.02335 | K13: 1225.729167 | N13: =N12+1 -> 2008 | O13: =D13 -> 14708.75 | P13: 1225.729167 | Q13: 2019 | R13: 19299.15463 | S13: 1608.262886 | T13: 2030 | U13: 25322.16329 | V13: 2110.180275
B14: 2009 | C14: =G13 -> 56698.02335 | D14: 15076.46875 | E14: 2248.26902 | F14: ='Property Elements'!$P$114*-1 -> -5209.996844 | G14: 68812.76428 | K14: 1256.372396 | N14: 2009 | O14: 15076.46875 | P14: 1256.372396 | Q14: 2020 | R14: 19781.63349 | S14: 1648.469458 | T14: 2031 | U14: 25955.21738 | V14: 2162.934781
B15: 2010 | C15: 68812.76428 | D15: 15453.38047 | E15: 2678.880908 | F15: ='Property Elements'!$Q$114*-1 -> -5340.246765 | G15: 81604.77889 | K15: 1287.781706 | N15: 2010 | O15: 15453.38047 | P15: 1287.781706 | Q15: 2021 | R15: 20276.17433 | S15: 1689.681194 | T15: 2032 | U15: 26604.09781 | V15: 2217.008151
B16: 2011 | C16: 81604.77889 | D16: 15839.71498 | E16: 3133.362273 | F16: ='Property Elements'!$R$114*-1 -> -5473.752934 | G16: 95104.10321 | K16: 1319.976248 | N16: 2011 | O16: 15839.71498 | P16: 1319.976248 | Q16: 2022 | R16: 20783.07869 | S16: 1731.923224 | T16: 2033 | U16: 27269.20026 | V16: 2272.433355
B17: 2012 | C17: 95104.10321 | D17: 16235.70785 | E17: 3612.7685 | F17: ='Property Elements'!$S$114*-1 -> -5610.596757 | G17: 109341.9828 | K17: 1352.975655 | N17: 2012 | O17: 16235.70785 | P17: 1352.975655 | Q17: 2023 | R17: 21302.65566 | S17: 1775.221305 | T17: 2034 | U17: 27950.93026 | V17: 2329.244189
B18: 2013 | C18: 109341.9828 | D18: 16641.60055 | E18: 4118.197408 | F18: ='Property Elements'!$T$114*-1 -> -5750.861676 | G18: 124350.9191 | K18: 1386.800046 | N18: 2013 | O18: 16641.60055 | P18: 1386.800046 | Q18: 2024 | R18: 21835.22205 | S18: 1819.601837 | T18: 2035 | U18: 28649.70352 | V18: 2387.475293
B19: 2014 | C19: 124350.9191 | D19: 17057.64057 | E19: 4650.790878 | F19: ='Property Elements'!$U$114*-1 -> -5894.633218 | G19: 140164.7173 | K19: 1421.470047 | N19: 2014 | O19: 17057.64057 | P19: 1421.470047 | Q19: 2025 | R19: 22381.1026 | S19: 1865.091883 | T19: 2036 | U19: 29365.94611 | V19: 2447.162176
B20: 2015 | C20: 140164.7173 | D20: 17484.08158 | E20: 5211.736534 | F20: ='Property Elements'!$V$114*-1 -> -6041.999049 | G20: 156818.5364 | K20: 1457.006798 | N20: 2015 | O20: 17484.08158 | P20: 1457.006798 | Q20: 2026 | R20: 22940.63016 | S20: 1911.71918
B21: 2016 | C21: 156818.5364 | D21: 17921.18362 | E21: 5802.269487 | F21: ='Property Elements'!$W$114*-1 -> -6193.049025 | G21: 174348.9405 | K21: 1493.431968 | N21: 2016 | O21: 17921.18362 | P21: 1493.431968 | Q21: 2027 | R21: 23514.14592 | S21: 1959.51216
B22: 2017 | C22: 174348.9405 | D22: 18369.21321 | E22: 6423.674147 | F22: ='Property Elements'!$X$114*-1 -> -6347.87525 | G22: 192793.9526 | K22: 1530.767767
B23: 2018 | C23: 192793.9526 | D23: 18828.44354 | E23: 7077.286102 | F23: ='Property Elements'!$Y$114*-1 -> -6506.572132 | G23: 212193.1101 | K23: 1569.036962
B24: 2019 | C24: 212193.1101 | D24: 19299.15463 | E24: 7764.494059 | F24: ='Property Elements'!$Z$114*-1 -> -6669.236435 | G24: 232587.5223 | K24: 1608.262886
B25: 2020 | C25: 232587.5223 | D25: 19781.63349 | E25: 8486.741868 | F25: ='Property Elements'!$AA$114*-1 -> -6835.967346 | G25: 254019.9303 | K25: 1648.469458
B26: 2021 | C26: 254019.9303 | D26: 20276.17433 | E26: 9245.530613 | F26: ='Property Elements'!$AB$114*-1 -> -7006.86653 | G26: 276534.7688 | K26: 1689.681194
B27: 2022 | C27: 276534.7688 | D27: 20783.07869 | E27: 10042.42078 | F27: ='Property Elements'!$AC$114*-1 -> -7182.038193 | G27: 300178.23 | K27: 1731.923224
B28: 2023 | C28: 300178.23 | D28: 21302.65566 | E28: 10879.03453 | F28: ='Property Elements'!$AD$114*-1 -> -7361.589148 | G28: 324998.3311 | K28: 1775.221305
B29: 2024 | C29: 324998.3311 | D29: 21835.22205 | E29: 11757.05797 | F29: ='Property Elements'!$AE$114*-1 -> -7545.628876 | G29: 351044.9822 | K29: 1819.601837
B30: 2025 | C30: 351044.9822 | D30: 22381.1026 | E30: 12678.24367 | F30: ='Property Elements'!$AF$114*-1 -> -7734.269598 | G30: 378370.0589 | K30: 1865.091883
B31: 2026 | C31: 378370.0589 | D31: 22940.63016 | E31: 13644.41309 | F31: ='Property Elements'!$AG$114*-1 -> -7927.626338 | G31: 407027.4758 | K31: 1911.71918
B32: 2027 | C32: 407027.4758 | D32: 23514.14592 | E32: 14657.45921 | F32: ='Property Elements'!$AH$114*-1 -> -8125.816997 | G32: 437073.2639 | K32: 1959.51216
B33: 2028 | C33: 437073.2639 | D33: 24101.99957 | E33: 15719.34923 | F33: ='Property Elements'!$AI$114*-1 -> -8328.962421 | G33: =C33+D33+E33+ F33 -> 468565.6503 | K33: 2008.499964
B34: 2029 | C34: 468565.6503 | D34: 24704.54956 | E34: 16832.12738 | F34: ='Property Elements'!$AJ$114*-1 -> -8537.186482 | G34: 501565.1408 | K34: 2058.712463
B35: 2030 | C35: 501565.1408 | D35: 25322.16329 | E35: 17997.91778 | F35: ='Property Elements'!$AK$114*-1 -> -8750.616144 | G35: 536134.6057 | K35: 2110.180275
B36: 2031 | C36: 536134.6057 | D36: 25955.21738 | E36: 19218.9275 | F36: ='Property Elements'!$AL$114*-1 -> -8969.381548 | G36: 572339.369 | K36: 2162.934781
B37: 2032 | C37: 572339.369 | D37: 26604.09781 | E37: 20497.44963 | F37: ='Property Elements'!$AM$114*-1 -> -9193.616086 | G37: 610247.3004 | K37: 2217.008151
B38: 2033 | C38: 610247.3004 | D38: 27269.20026 | E38: 21835.86652 | F38: ='Property Elements'!$AN$114*-1 -> -9423.456489 | G38: 649928.9107 | K38: 2272.433355
B39: 2034 | C39: 649928.9107 | D39: 27950.93026 | E39: 23236.65315 | F39: ='Property Elements'!$AO$114*-1 -> -9659.042901 | G39: 691457.4512 | K39: 2329.244189
B40: 2035 | C40: 691457.4512 | D40: 28649.70352 | E40: 24702.3806 | F40: ='Property Elements'!$AP$114*-1 -> -9900.518973 | G40: 734909.0163 | K40: 2387.475293
B41: 2036 | C41: 734909.0163 | D41: 29365.94611 | E41: 26235.71963 | F41: ='Property Elements'!$AQ$114*-1 -> -10148.03195 | G41: 780362.6501 | K41: 2447.162176

Sheet Trust Balance Graph

Sheet PIE CHART

Sheet Table data for Summary
B3: Expenditure Table
A4: ='Property Elements'!I124 -> Period, Years | B4: ='Property Elements'!J124 -> 2006 - 2013 | C4: ='Property Elements'!K124 -> 2014 - 2021 | D4: ='Property Elements'!L124 -> 2022 - 2029 | E4: ='Property Elements'!M124 -> 2030 - 2036
A5: ='Property Elements'!I125 -> Amount | B5: ='Property Elements'!J125 -> 69036.32873 | C5: ='Property Elements'!K125 -> 51496.19898 | D5: ='Property Elements'!L125 -> 62743.11805 | E5: ='Property Elements'!M125 -> 66044.66409
A6: ='Property Elements'!I126 -> Percentage | B6: ='Property Elements'!J126 -> 0.2768981346 | C6: ='Property Elements'!K126 -> 0.206546346 | D6: ='Property Elements'!L126 -> 0.2516566664 | E6: ='Property Elements'!M126 -> 0.2648988529

Sheet Sheet3
